bitfinex/quotes_ETHUSD_20260208
["timestamp","ask_amount","ask_price","bid_price","bid_amount"]
[1770592030253,0.05243089,2148.8,2148.6,0.24328485]
[1770592030544,0.94714464,2150.2,2148.6,0.24328485]
[1770592030706,0.94714464,2150.9,2148.7,4.777111]
[1770592030901,1.16203402,2151.4,2148.8,13.40122499]
[1770592031133,0.99957553,2151.1,2148.9,3.942036]
[1770592031338,0.94714464,2151.5,2149.3,0.05243089]
[1770592031524,2.10912594,2151.5,2149.7,10.765837]
[1770592031714,1.16084979,2153.6,2151.0,0.95599484]
[1770592031909,0.05243089,2151.1,2149.8,0.40153404]
[1770592032258,0.05243089,2151.1,2148.4,1.39599813]
[1770592032259,0.94714464,2150.0,2148.6,0.11121763]
[1770592032406,0.94714464,2150.7,2148.7,1.51531759]
[1770592032606,0.18432,2152.0,2148.5,1.16360251]
[1770592032607,0.24306089,2151.2,2149.9,10.14222499]
[1770592032806,0.94714464,2152.0,2149.5,14.459815]
[1770592033052,0.05243089,2151.9,2149.8,0.32518654]
[1770592033259,0.99957553,2151.9,2150.0,1.16279069]
[1770592033427,0.94714464,2152.6,2150.4,7.739915]
[1770592033624,0.24291415,2152.8,2150.0,1.21522158]
[1770592033625,0.05243089,2152.4,2150.1,0.05243089]
[1770592033831,10.14222499,2152.2,2150.1,10.997711]
[1770592034149,10.14222499,2152.2,2150.3,0.05243089]
[1770592034335,0.94714464,2152.0,2150.1,0.05243089]
[1770592034651,0.94714464,2152.6,2150.4,0.05243089]
[1770592034858,0.40576694,2153.0,2151.5,12.695049]
[1770592035054,0.40576694,2153.0,2150.5,0.05243089]
[1770592035055,0.94803957,2152.9,2150.9,12.045619]
[1770592035263,1.17121779,2153.0,2151.3,1.16208803]
[1770592035462,1.00047046,2152.9,2151.1,1.16218016]
[1770592035675,1.00047046,2152.9,2150.9,4.64921219]
[1770592035676,10.14222499,2152.8,2151.2,1.16213167]
[1770592035879,1.17121779,2153.0,2151.0,0.05243089]
[1770592036163,1.17121779,2153.0,2150.6,1.21487078]
[1770592036164,0.94774167,2152.9,2150.6,1.21487078]
[1770592036464,0.05243089,2152.4,2150.3,0.05243089]
[1770592036627,0.05243089,2152.4,2149.8,3.30743089]
[1770592036628,0.05243089,2151.8,2149.8,3.255]
[1770592036829,0.94774167,2151.8,2150.0,0.05243089]
[1770592037039,0.94774167,2151.8,2149.3,0.05243089]
[1770592037040,10.14222499,2151.1,2149.0,0.05243089]
[1770592037266,10.14222499,2151.1,2147.5,0.05243089]
[1770592037267,1.16268254,2150.2,2148.3,2.66190489]
[1770592037588,1.21511343,2150.2,2148.1,0.05243089]
[1770592037733,2.11042421,2150.2,2148.2,2.010157]
[1770592038060,0.05243089,2150.0,2148.1,0.05243089]
[1770592038260,0.05243089,2150.0,2148.1,1.21624578]
[1770592038569,0.94774167,2150.1,2147.9,0.05243089]
[1770592038729,0.05243089,2150.0,2147.9,0.05243089]
[1770592038929,1.00017256,2149.7,2147.6,1.16404875]
[1770592039251,1.00017256,2149.7,2147.2,3.254]
[1770592039252,1.16322352,2149.2,2147.2,3.254]
[1770592039565,1.16322352,2149.2,2147.7,0.05243089]
[1770592039731,1.16322352,2149.2,2147.2,4.4183006]
[1770592039732,1.21565441,2149.2,2147.2,3.251]
[1770592039927,10.19465588,2148.9,2147.2,3.251]
[1770592040135,10.14222499,2148.9,2147.2,3.251]
[1770592040428,1.21565441,2149.2,2145.7,1.16508164]
[1770592040429,10.14222499,2147.7,2145.7,1.16508164]
[1770592040630,1.00017256,2147.5,2144.6,14.29791256]
[1770592040838,0.05243089,2146.6,2144.6,0.001]
[1770592041138,10.14222499,2145.7,2144.6,0.001]
[1770592041350,1.16517524,2145.6,2144.6,0.001]
[1770592041528,1.16517524,2145.6,2143.4,4.66537526]
[1770592041732,1.16517524,2145.6,2143.3,1.16642169]
[1770592041733,0.05243089,2145.1,2143.3,1.16642169]
[1770592041988,0.05243089,2145.0,2143.2,1.1664334]
[1770592042259,10.14222499,2144.7,2142.7,2.242329]
[1770592042429,0.05243089,2144.5,2142.8,1.1666509]
[1770592042632,0.05243089,2144.1,2142.2,2.097]
[1770592042845,0.05243089,2143.8,2142.2,2.097]
[1770592043048,0.05243089,2144.1,2141.8,0.05243089]
[1770592043256,10.24462499,2144.3,2142.2,0.05243089]
[1770592043452,1.16593601,2144.2,2142.3,3.21137007]
[1770592043662,0.05243089,2143.9,2142.2,0.05243089]
[1770592044033,0.05243089,2143.9,2141.5,0.05243089]
[1770592044034,0.05243089,2143.6,2141.5,0.05243089]
[1770592044238,0.05243089,2143.7,2141.9,2.015]
[1770592044468,0.05243089,2143.6,2141.8,1.2196643]
[1770592044760,0.05243089,2143.6,2141.8,0.05243089]
[1770592044948,0.05243089,2143.6,2141.4,1.16745623]
[1770592044949,0.05243089,2143.3,2141.4,1.16745623]
[1770592045151,0.05243089,2143.6,2141.6,1.16731201]
[1770592045361,1.16620795,2143.7,2141.9,1.16718801]
[1770592045559,1.21863884,2143.7,2141.8,1.21964908]
[1770592045762,0.05243089,2143.4,2140.9,4.15468757]
[1770592045942,1.21863884,2143.7,2140.5,0.05243089]
[1770592045943,10.07814174,2142.8,2140.5,0.05243089]
[1770592046267,10.07814174,2142.8,2140.8,0.05243089]
[1770592046438,0.1024,2143.6,2140.8,0.05243089]
[1770592046439,1.05014167,2143.6,2141.4,0.05243089]
[1770592046641,0.94774167,2143.6,2141.8,1.16723336]
[1770592047161,0.05243089,2143.5,2141.8,1.16723437]
[1770592047345,0.05243089,2142.9,2141.0,1.16767865]
[1770592047549,1.16653445,2143.1,2141.0,2.946492]
[1770592047735,0.05243089,2142.9,2140.9,1.22013859]
[1770592047938,0.05243089,2142.6,2140.9,1.22013859]
[1770592048160,1.16653445,2143.1,2140.9,1.22013859]
[1770592048460,0.05243089,2142.8,2140.9,1.1677077]
[1770592048648,0.94774167,2143.0,2141.1,0.05243089]
[1770592048961,1.16626236,2143.6,2141.7,0.05243089]
[1770592049157,1.16626236,2143.6,2141.9,0.05243089]
[1770592049538,1.16626236,2143.6,2141.9,1.21961885]
[1770592049739,1.16626236,2143.6,2141.9,0.05243089]
[1770592050062,0.05243089,2143.1,2140.9,10.07814174]
[1770592050243,0.05243089,2143.0,2140.9,1.16770665]
[1770592050563,0.05243089,2142.7,2140.9,1.16771479]
[1770592050752,0.05243089,2142.4,2140.7,1.16784068]
[1770592051066,0.05243089,2142.1,2140.1,0.001]
[1770592051384,0.05243089,2142.4,2140.3,1.16806055]
[1770592051385,0.05243089,2142.0,2140.3,1.16806055]
[1770592051551,1.16697007,2142.3,2140.3,1.16806055]
[1770592051746,0.05243089,2141.8,2141.1,0.001]
[1770592051949,0.05243089,2141.4,2140.2,0.1394697]
[1770592052150,10.07814174,2141.2,2140.2,0.1394697]
[1770592052335,0.05243089,2141.0,2140.2,0.1394697]
[1770592052536,2.16714263,2142.3,2140.2,1.30756308]
[1770592052729,0.05243089,2141.7,2140.2,1.30756308]
[1770592053037,0.05243089,2141.6,2140.2,0.1394697]
[1770592053239,0.94774167,2141.7,2140.2,0.1394697]
[1770592053538,1.16735151,2141.6,2140.2,0.1394697]
[1770592054060,0.1024,2142.1,2140.2,0.1394697]
[1770592054239,1.00017256,2142.4,2140.2,1.30754798]
[1770592054240,1.16697007,2142.3,2140.2,1.30754798]
[1770592054676,1.16686114,2142.6,2140.4,12.2221]
[1770592054966,1.16686114,2142.6,2140.6,0.05243089]
[1770592055160,1.16686114,2142.6,2140.7,2.972887]
[1770592055360,0.05243089,2142.4,2140.6,0.05243089]
[1770592055543,0.05243089,2142.4,2140.6,1.167887]
[1770592055544,1.16697007,2142.3,2140.6,1.167887]
[1770592056051,1.16664333,2142.9,2140.8,2.833377]
[1770592056234,1.16664333,2142.9,2141.0,0.05243089]
[1770592056435,0.05243089,2142.8,2140.7,4.816]
[1770592056862,0.05243089,2142.5,2140.7,2.85515]
[1770592057035,0.05243089,2142.8,2140.7,2.638]
[1770592057036,0.05243089,2142.4,2140.7,2.638]
[1770592057241,0.94774167,2142.8,2140.7,2.638]
[1770592057549,1.16707903,2142.1,2140.5,2.965]
[1770592057750,0.94774167,2143.4,2140.9,0.05243089]
[1770592057945,4.71889131,2143.0,2140.7,0.05243089]
[1770592058145,1.16658889,2143.1,2140.7,0.05243089]
[1770592058146,0.05243089,2143.1,2141.1,2.1973]
[1770592058343,0.05243089,2143.0,2140.7,0.05243089]
[1770592058552,11.24456734,2143.3,2140.8,2.57815]
[1770592058553,0.05243089,2142.9,2140.8,2.57815]
[1770592058753,1.00017256,2143.2,2141.1,3.772044]
[1770592058955,4.66570242,2143.4,2141.0,0.05243089]
[1770592058956,1.16640732,2143.4,2141.5,3.839494]
[1770592059165,1.16620795,2143.7,2141.6,0.05243089]
[1770592059464,10.13057263,2144.5,2141.6,0.05243089]
[1770592059465,1.16550116,2145.0,2142.8,4.4913]
[1770592059665,0.94774167,2144.9,2142.7,1.16675222]
[1770592059966,0.05243089,2144.8,2143.0,3.831044]
[1770592060171,0.94774167,2144.9,2142.7,1.16675222]
[1770592060172,0.05243089,2145.1,2142.7,1.21918311]
[1770592060354,0.05243089,2145.0,2142.8,2.83703]
[1770592060670,0.05243089,2145.0,2142.6,4.66700891]
[1770592060671,1.00017256,2144.4,2142.6,1.16678037]
[1770592060975,0.05243089,2145.1,2142.8,6.938685]
[1770592061185,1.16517524,2145.6,2143.6,0.05243089]
[1770592061342,0.05243089,2146.2,2144.4,0.05243089]
[1770592061343,4.65977077,2146.1,2144.4,0.05243089]
[1770592061543,4.65949076,2146.3,2144.5,1.1657729]
[1770592061785,0.05243089,2146.1,2144.5,1.1657729]
[1770592061941,4.65953771,2146.4,2144.5,1.1657729]
[1770592062143,0.05243089,2146.1,2143.7,0.90168757]
[1770592062342,0.05243089,2146.1,2142.2,1.4528362]
[1770592062343,0.05243089,2145.5,2144.0,1.16601959]
[1770592062567,0.05243089,2145.2,2143.6,4.66501614]
[1770592062747,10.13057263,2145.8,2143.5,0.05243089]
[1770592062947,10.07814174,2146.3,2144.4,1.16582616]
[1770592063156,0.05243089,2146.7,2144.4,1.16582616]
[1770592063157,1.16463244,2146.6,2144.5,2.303]
[1770592063377,1.16463244,2146.6,2144.6,9.036501]
[1770592063581,0.05243089,2146.4,2144.8,5.095]
[1770592063777,0.05243089,2145.8,2143.7,4.71724321]
[1770592063988,0.05243089,2145.5,2144.0,1.16600552]
[1770592064197,0.05243089,2144.6,2142.3,0.90168757]
[1770592064355,0.05243089,2143.7,2142.5,1.1668603]
[1770592064695,0.05243089,2144.0,2142.0,4.66840697]
[1770592064696,0.05243089,2143.6,2142.0,4.66840697]
[1770592064851,0.05243089,2143.6,2141.5,0.05243089]
[1770592064852,0.05243089,2143.3,2141.5,3.153417]
[1770592065054,0.05243089,2143.3,2140.3,22.3233948]
[1770592065055,0.05243089,2142.4,2140.3,22.3233948]
[1770592065255,0.05243089,2142.7,2140.4,2.00455]
[1770592065256,0.05243089,2142.0,2140.4,2.00455]
[1770592065489,1.16735151,2141.6,2140.3,1.16806055]
[1770592065675,0.05243089,2142.4,2140.4,2.028325]
[1770592065881,0.05243089,2143.0,2140.4,2.08075589]
[1770592066186,4.66592011,2143.3,2140.9,2.533]
[1770592066395,10.07814174,2142.8,2140.8,0.001]
[1770592066607,0.91323576,2143.6,2141.0,16.217227]
[1770592066755,0.91323576,2143.6,2140.9,10.13057263]
[1770592066756,0.05243089,2143.3,2141.4,10.07814174]
[1770592066953,4.66449827,2143.9,2141.2,0.05243089]
[1770592066954,1.16566419,2144.7,2142.4,0.05243089]
[1770592067179,1.16550116,2145.0,2142.8,11.600666]
[1770592067364,1.21787782,2145.1,2143.1,2.005268]
[1770592067567,1.21787782,2145.1,2143.1,1.16653445]
[1770592067775,1.16544693,2145.1,2143.1,1.16653445]
[1770592067976,0.05243089,2144.3,2142.1,0.05243089]
[1770592068181,0.05243089,2144.3,2142.5,1.16682404]
[1770592068485,0.05243089,2143.4,2142.0,3.26]
[1770592068790,0.05243089,2143.3,2142.0,3.26]
[1770592069092,0.1024,2144.1,2142.0,3.26]
[1770592069093,10.13057263,2144.4,2142.9,1.16659597]
[1770592069408,0.91323576,2144.6,2143.1,1.16653445]
[1770592069692,4.71421821,2145.5,2142.8,0.05243089]
[1770592069693,4.66131291,2145.4,2142.8,0.05243089]
[1770592069865,10.07814174,2145.3,2143.0,2.361389]
[1770592070061,0.05243089,2144.9,2142.8,10.652983]
[1770592070259,0.05243089,2144.8,2142.9,0.41178183]
[1770592070469,0.05243089,2144.2,2142.3,10.335]
[1770592070694,0.05243089,2143.9,2142.3,2.42215]
[1770592070894,0.24361191,2145.2,2142.6,1.04235116]
[1770592071109,0.05243089,2145.2,2142.9,10.13057263]
[1770592071309,4.66131291,2145.4,2143.6,0.05243089]
[1770592071508,1.1653925,2145.2,2143.7,1.16620795]
[1770592071911,4.65969118,2146.1,2143.7,1.16620795]
[1770592071912,1.1648495,2146.2,2143.8,2.451629]
[1770592072099,0.05243089,2145.4,2143.7,1.16620795]
[1770592072298,0.05243089,2145.3,2143.7,1.16620795]
[1770592072488,0.05243089,2145.3,2143.2,1.16644178]
[1770592072489,0.05243089,2144.7,2143.2,1.16644178]
[1770592072688,0.05243089,2145.0,2143.1,3.26]
[1770592073112,0.05243089,2145.8,2143.6,1.16625327]
[1770592073311,0.05243089,2145.5,2143.6,1.16625327]
[1770592073614,0.91323576,2145.9,2143.6,16.44726489]
[1770592073804,1.16479522,2146.3,2144.0,9.494281]
[1770592074001,0.05243089,2145.8,2143.9,0.05243089]
[1770592074203,4.65918091,2146.5,2143.9,0.05243089]
[1770592074204,0.91323576,2146.6,2144.0,5.304627]
[1770592074392,0.91323576,2146.6,2143.8,10.07814174]
[1770592074393,0.05243089,2145.9,2143.6,0.1024]
[1770592074714,0.05243089,2145.9,2143.6,0.05243089]
[1770592074715,10.13057263,2145.8,2143.6,0.05243089]
[1770592074911,10.13057263,2145.8,2143.6,2.22615]
[1770592075211,0.05243089,2145.2,2143.5,4.66504944]
[1770592075384,0.05243089,2145.5,2143.5,2.105029]
[1770592075590,0.05243089,2145.1,2143.6,1.16626236]
[1770592075790,0.05243089,2145.0,2143.6,1.16626236]
[1770592075985,0.05243089,2145.0,2143.4,3.259]
[1770592076293,0.05243089,2144.7,2142.6,15.672945]
[1770592076601,0.91323576,2145.2,2142.5,0.05243089]
[1770592076602,0.91323576,2145.2,2143.5,1.16631267]
[1770592076816,0.05243089,2145.6,2143.5,1.16631267]
[1770592077012,4.66048375,2145.8,2143.5,1.16631267]
[1770592077013,4.65861919,2146.6,2144.5,10.07814174]
[1770592077205,0.05243089,2146.5,2144.3,3.259]
[1770592077404,0.05243089,2146.5,2144.4,0.05243089]
[1770592077628,0.05243089,2146.2,2144.5,1.1657729]
[1770592078295,0.05243089,2146.4,2144.5,1.1657729]
[1770592078618,5.57185495,2146.6,2144.7,0.05243089]
[1770592078829,0.05243089,2145.8,2144.5,1.1657729]
[1770592079030,0.05243089,2146.2,2144.5,1.1657729]
[1770592079243,0.05243089,2146.3,2144.5,1.1657729]
[1770592079521,5.57185495,2146.6,2144.5,1.1657729]
[1770592079734,4.65861919,2146.6,2144.7,0.04943089]
[1770592080093,1.1644697,2146.9,2145.0,0.05243089]
[1770592080420,0.05243089,2146.4,2144.5,1.1657729]
[1770592080719,0.05243089,2146.3,2144.5,1.1657729]
[1770592080925,0.05243089,2146.0,2144.5,1.1657729]
[1770592081243,0.05243089,2146.5,2144.5,1.1657729]
[1770592081542,0.05243089,2145.6,2144.3,3.259]
[1770592081703,0.05243089,2145.3,2143.3,7.92364959]
[1770592082026,0.05243089,2145.2,2143.3,3.258]
[1770592082240,0.05243089,2145.2,2142.6,11.06806201]
[1770592082241,0.05243089,2144.3,2142.1,12.23157263]
[1770592082392,0.05243089,2143.8,2142.1,2.101]
[1770592082592,0.05243089,2143.4,2142.0,1.1671008]
[1770592082794,0.05243089,2143.4,2141.9,1.16713777]
[1770592083003,0.05243089,2143.4,2141.7,3.258]
[1770592083004,0.05243089,2143.1,2141.7,3.258]
[1770592083416,0.05243089,2142.8,2141.7,3.258]
[1770592083638,1.16675222,2142.7,2141.7,3.258]
[1770592083923,1.16675222,2142.7,2141.4,1.16745013]
[1770592084125,1.16675222,2142.7,2141.1,0.001]
[1770592084323,1.16675222,2142.7,2141.7,1.16729357]
[1770592084536,1.16631677,2143.5,2142.1,0.05243089]
[1770592084840,0.05243089,2143.2,2141.7,1.16729357]
[1770592085127,0.05243089,2142.9,2141.3,1.16750275]
[1770592085426,0.05243089,2142.9,2141.1,0.001]
[1770592085427,0.05243089,2142.6,2141.1,0.001]
[1770592085632,0.05243089,2142.3,2141.1,0.001]
[1770592085834,0.05243089,2142.2,2140.7,3.10564136]
[1770592086020,0.05243089,2142.1,2140.7,3.10564136]
[1770592086223,0.05243089,2141.5,2140.4,1.16798959]
[1770592086400,0.05243089,2141.5,2140.2,0.1394697]
[1770592086401,0.05243089,2142.2,2140.7,1.16784051]
[1770592086608,0.05243089,2141.6,2140.2,0.1394697]
[1770592086800,0.05243089,2141.3,2140.2,0.1394697]
[1770592087101,0.05243089,2141.6,2140.2,0.1394697]
[1770592087306,0.05243089,2141.3,2140.2,0.1394697]
[1770592087531,0.05243089,2141.6,2140.2,1.30756759]
[1770592087738,0.05243089,2142.0,2140.2,0.1394697]
[1770592088033,0.05243089,2141.7,2140.2,0.1394697]
[1770592088208,0.05243089,2141.4,2140.2,1.3075749]
[1770592088414,4.66853408,2142.2,2140.2,1.3075749]
[1770592088415,4.66779978,2142.4,2140.2,1.3075749]
[1770592088634,0.05243089,2141.9,2140.2,1.3075749]
[1770592088837,0.05243089,2141.3,2140.2,0.1394697]
[1770592089009,0.05243089,2141.2,2140.2,0.1394697]
[1770592089357,0.05243089,2141.7,2140.2,1.30755643]
[1770592089533,0.05243089,2141.7,2140.2,0.1394697]
[1770592089839,0.05243089,2140.8,2140.0,0.001]
[1770592090009,0.05243089,2140.3,2139.0,1.16875945]
[1770592090210,0.05243089,2140.3,2138.5,1.16904372]
[1770592090211,0.05243089,2140.0,2138.5,1.16904372]
[1770592090430,0.05243089,2139.9,2138.5,1.16904372]
[1770592090932,0.05243089,2139.2,2137.8,0.001]
[1770592091139,0.05243089,2138.8,2137.8,0.001]
[1770592091533,0.05243089,2138.5,2137.8,0.001]
[1770592091715,1.22148206,2138.5,2137.8,0.001]
[1770592091918,0.05243089,2138.3,2137.8,0.001]
[1770592092129,0.05243089,2138.8,2136.9,4.68057393]
[1770592092632,0.91323576,2139.6,2137.2,0.05243089]
[1770592092833,0.05243089,2138.8,2136.9,4.68057393]
[1770592093039,0.05243089,2140.1,2137.7,10.07814174]
[1770592093351,0.05243089,2140.3,2138.4,0.05243089]
[1770592093634,1.16784229,2140.7,2140.1,0.001]
[1770592093635,1.16800598,2140.4,2140.1,0.001]
[1770592093833,1.16800598,2140.4,2138.5,8.49746672]
[1770592093834,0.96566665,2140.7,2138.5,1.16904372]
[1770592094037,2.08110912,2140.7,2138.7,0.05243089]
[1770592094235,1.22030425,2140.7,2139.3,0.001]
[1770592094610,0.05243089,2140.4,2139.3,0.001]
[1770592094835,1.22030425,2140.7,2139.3,0.001]
[1770592095023,0.05243089,2140.4,2139.3,0.001]
[1770592095225,0.05243089,2140.1,2139.3,0.001]
[1770592095428,10.13057263,2140.4,2139.3,0.001]
[1770592095630,1.16822429,2140.0,2139.3,0.001]
[1770592096012,1.16822429,2140.0,2138.3,1.16915306]
[1770592096013,0.05243089,2139.8,2138.3,1.16915306]
[1770592096217,0.05243089,2140.1,2138.3,1.16915306]
[1770592096524,0.90777438,2140.9,2138.8,0.05243089]
[1770592096712,1.16751506,2141.3,2139.1,0.05243089]
[1770592097035,1.16749238,2141.4,2139.5,0.05243089]
[1770592097239,1.21992327,2141.4,2139.5,0.05243089]
[1770592097553,1.16749238,2141.4,2139.6,0.05243089]
[1770592097849,0.05243089,2141.1,2139.7,1.16838809]
[1770592098052,11.29806501,2141.4,2139.7,1.16838809]
[1770592098053,1.21992327,2141.4,2139.7,1.16838809]
[1770592098341,0.05243089,2141.1,2139.7,1.16838809]
[1770592098546,0.05243089,2141.5,2139.7,1.16838809]
[1770592098708,1.1672425,2141.8,2139.9,0.5]
[1770592098908,1.1672425,2141.8,2140.0,3.537933]
[1770592099115,0.05243089,2141.6,2139.9,0.5]
[1770592099429,1.16713352,2142.0,2140.3,0.05243089]
[1770592099748,0.0011,2142.1,2140.7,3.427579]
[1770592099917,0.0011,2142.1,2140.7,2.176579]
[1770592100113,0.0011,2142.1,2140.6,0.05243089]
[1770592100313,0.0011,2142.1,2140.7,2.264045]
[1770592100514,0.0011,2142.1,2140.5,2.015869]
[1770592100722,0.05243089,2142.0,2140.4,1.16800598]
[1770592101336,0.05243089,2142.0,2140.3,4.67202392]
[1770592101337,0.05243089,2141.7,2140.3,1.1680515]
[1770592101531,0.05243089,2141.4,2140.1,1.16813553]
[1770592101731,1.21994595,2141.3,2139.7,4.67345793]
[1770592102049,1.16751506,2141.3,2139.7,4.67345793]
[1770592102254,1.21994595,2141.3,2139.7,4.67345793]
[1770592102452,0.05243089,2141.2,2139.7,4.67345793]
[1770592102652,1.21994595,2141.3,2139.7,4.67345793]
[1770592102954,1.21956441,2142.0,2139.8,2.126196]
[1770592103172,1.16713352,2142.0,2139.9,0.05243089]
[1770592103471,0.05243089,2141.7,2139.7,4.67345793]
[1770592103667,1.16718801,2141.9,2140.0,0.5]
[1770592103951,1.2196189,2141.9,2140.0,0.5]
[1770592104247,1.2196189,2141.9,2140.1,2.49786]
[1770592104452,1.16718801,2141.9,2140.0,0.5]
[1770592104667,0.05243089,2141.6,2140.0,0.5]
[1770592104848,1.2196189,2141.9,2140.0,0.5]
[1770592105031,0.05243089,2141.6,2140.0,0.5]
[1770592105571,0.05243089,2140.9,2139.6,4.43241406]
[1770592105751,0.05243089,2140.9,2140.2,0.001]
[1770592105752,1.16778774,2140.8,2140.2,0.001]
[1770592106072,0.05243089,2140.5,2138.2,10.13057263]
[1770592106255,0.05243089,2139.6,2138.5,1.16903991]
[1770592106426,0.05243089,2140.0,2138.2,4.67682637]
[1770592106630,0.05243089,2139.5,2138.2,1.16919211]
[1770592106832,0.05243089,2139.9,2139.1,0.001]
[1770592107032,0.05243089,2139.6,2138.2,1.16919211]
[1770592107228,0.05243089,2139.5,2138.1,1.16923013]
[1770592107437,0.05243089,2139.2,2138.1,1.16922179]
[1770592107733,1.16855193,2139.4,2137.8,4.67764953]
[1770592108028,4.67300982,2140.0,2137.8,4.67764953]
[1770592108238,0.05243089,2140.1,2138.2,0.05243089]
[1770592108434,0.05243089,2140.0,2137.9,0.98200269]
[1770592108747,0.05243089,2140.2,2138.0,0.5]
[1770592108937,0.05243089,2140.0,2138.2,0.05243089]
[1770592109266,0.05243089,2140.0,2137.0,4.67938771]
[1770592109267,0.90777438,2138.8,2137.0,4.67938771]
[1770592109565,0.05243089,2138.5,2137.6,1.16951067]
[1770592109738,0.05243089,2138.7,2136.9,0.001]
[1770592109938,0.05243089,2139.1,2136.9,0.001]
[1770592110146,1.22103744,2139.3,2137.2,0.05243089]
[1770592110339,1.22103744,2139.3,2136.9,0.001]
[1770592110340,0.05243089,2138.4,2136.9,0.001]
[1770592110539,0.96020527,2139.0,2136.9,0.001]
[1770592110752,0.05243089,2138.6,2136.9,0.001]
[1770592110956,0.05243089,2138.3,2136.9,0.001]
[1770592111153,0.05243089,2138.0,2136.9,0.001]
[1770592111459,0.05243089,2138.3,2136.9,0.001]
[1770592111658,0.05243089,2138.0,2136.9,0.001]
[1770592112057,1.16937181,2137.9,2136.9,0.001]
[1770592112236,4.67681054,2138.3,2136.9,0.001]
[1770592112437,1.22125598,2138.9,2136.9,0.001]
[1770592112641,0.05243089,2138.6,2136.9,0.001]
[1770592113280,0.05243089,2138.1,2136.9,0.001]
[1770592113441,0.05243089,2137.8,2136.9,0.001]
[1770592113639,0.05243089,2137.7,2136.9,0.001]
[1770592113942,1.16931711,2138.0,2136.9,0.001]
[1770592114137,1.221748,2138.0,2136.9,0.001]
[1770592114360,4.67618555,2138.5,2136.9,0.001]
[1770592114555,0.05243089,2138.6,2136.9,0.001]
[1770592114876,1.16887974,2138.8,2136.9,0.001]
[1770592115166,1.16887974,2138.8,2137.0,0.05243089]
[1770592115363,1.11887974,2138.8,2136.9,0.001]
[1770592115550,1.11887974,2138.8,2137.0,0.05243089]
[1770592115766,0.05243089,2138.6,2136.9,0.001]
[1770592115983,0.05243089,2138.6,2136.1,4.73298319]
[1770592115984,0.05243089,2137.6,2136.1,1.17035719]
[1770592116283,0.05243089,2137.5,2136.0,1.30985065]
[1770592116580,0.05243089,2137.2,2136.0,1.30985065]
[1770592116774,0.05243089,2137.6,2136.0,1.30985065]
[1770592117083,0.05243089,2137.2,2135.9,1.17042786]
[1770592117250,0.05243089,2136.9,2135.8,1.17048374]
[1770592117452,0.05243089,2137.5,2135.9,1.17043513]
[1770592117453,0.05243089,2137.1,2135.9,1.17043513]
[1770592117655,0.05243089,2137.0,2135.3,0.00269273]
[1770592117867,0.05243089,2137.1,2135.8,1.17051853]
[1770592118179,1.17002854,2136.7,2135.3,0.00269273]
[1770592118562,0.05243089,2136.5,2135.3,0.00269273]
[1770592118757,4.73075914,2137.6,2135.3,0.98469542]
[1770592118963,0.05243089,2136.6,2135.3,0.00269273]
[1770592119158,0.05243089,2136.9,2135.3,0.00269273]
[1770592119394,0.05243089,2136.6,2136.1,0.001]
[1770592119679,0.96020527,2136.2,2133.5,4.6870709]
[1770592119855,0.05243089,2135.1,2134.5,1.17219658]
[1770592120055,0.96020527,2136.2,2134.5,0.001]
[1770592120056,1.17035719,2136.1,2134.5,0.001]
[1770592120360,1.17013807,2136.5,2134.5,0.001]
[1770592120768,1.17013807,2136.5,2134.9,0.05243089]
[1770592120968,1.17013807,2136.5,2135.2,0.05243089]
[1770592121163,1.17013807,2136.5,2135.1,0.05243089]
[1770592121375,0.90777438,2136.8,2134.8,0.05243089]
[1770592121567,2.17987446,2137.4,2135.5,0.05243089]
[1770592121766,4.67885291,2137.3,2135.5,0.05243089]
[1770592122088,4.7312838,2137.3,2135.6,1.1706312]
[1770592122297,4.7312838,2137.3,2135.6,1.22306209]
[1770592122298,1.16970008,2137.3,2135.6,1.22306209]
[1770592122455,0.91020527,2137.2,2135.3,4.68312044]
[1770592122793,0.05243089,2136.9,2135.5,1.17068454]
[1770592123092,0.05073578,2136.6,2135.2,1.17081604]
[1770592123251,10.10863485,2137.1,2135.5,1.17067829]
[1770592123455,0.05243089,2136.6,2135.3,1.17075903]
[1770592123670,0.05243089,2136.6,2135.5,1.17068078]
[1770592123870,0.96020527,2137.0,2135.3,4.68316438]
[1770592124069,1.16991904,2136.9,2134.9,0.05243089]
[1770592124273,1.16964536,2137.4,2135.5,0.05243089]
[1770592124479,0.05243089,2137.2,2135.5,0.05243089]
[1770592124685,1.16964536,2137.4,2135.5,0.05243089]
[1770592125059,1.16964536,2137.4,2135.6,0.05243089]
[1770592125470,1.22207625,2137.4,2135.3,1.03821136]
[1770592125962,1.16964536,2137.4,2135.6,0.05243089]
[1770592126199,0.05243089,2137.1,2135.7,1.17057639]
[1770592126354,0.05243089,2137.4,2135.7,1.17057639]
[1770592126557,0.05243089,2137.1,2135.7,1.17057639]
[1770592126803,0.05243089,2137.4,2135.7,1.17057639]
[1770592126973,0.05243089,2137.0,2135.7,1.17057639]
[1770592127297,0.05243089,2137.0,2135.6,1.17059225]
[1770592127453,0.05243089,2137.0,2134.9,0.05243089]
[1770592127655,0.05243089,2136.4,2135.2,1.17081242]
[1770592127878,0.05243089,2136.4,2134.2,4.10700989]
[1770592127879,0.05243089,2136.3,2135.1,1.17087731]
[1770592128085,1.1700833,2136.6,2134.3,4.68537394]
[1770592128388,0.05243089,2136.4,2134.5,0.05243089]
[1770592128889,4.67954711,2137.0,2135.1,0.05243089]
[1770592129480,1.0272802,2137.6,2135.4,0.05243089]
[1770592129788,0.05243089,2136.9,2134.5,1.03821136]
[1770592129975,0.05243089,2136.9,2135.0,0.05243089]
[1770592130288,1.16997379,2136.8,2135.1,1.17090534]
[1770592130894,0.05243089,2136.3,2135.0,1.17092571]
[1770592131192,1.16997379,2136.8,2135.1,0.05243089]
[1770592131356,1.16997379,2136.8,2135.9,0.001]
[1770592132088,0.05243089,2136.7,2135.9,0.001]
[1770592132286,1.1700833,2136.6,2135.9,0.001]
[1770592132994,0.05243089,2136.4,2135.9,0.001]
[1770592133561,1.1700833,2136.6,2135.9,0.001]
[1770592134458,1.22207625,2137.4,2135.9,0.001]
[1770592134679,1.16964536,2137.4,2135.9,0.001]
[1770592135187,0.05243089,2137.2,2135.9,0.001]
[1770592135393,0.05243089,2136.9,2135.9,0.001]
[1770592135564,0.05243089,2137.1,2135.9,0.001]
[1770592135963,0.05243089,2136.8,2135.9,0.001]
[1770592136158,0.05243089,2136.5,2135.9,0.001]
[1770592136362,1.17035719,2136.1,2135.6,0.001]
[1770592136585,1.17035719,2136.1,2134.8,0.001]
[1770592136977,1.16986429,2137.0,2134.9,1.03821136]
[1770592137170,0.05243089,2136.9,2135.0,0.98578047]
[1770592137568,4.67923822,2137.2,2135.4,0.05243089]